{"text_format":"3","workbook":"xlsx","n_sheets":4,"sheets":["Gairės","Veiksmų planas","Apie","Diagramos duomenys"],"not_rendered":{"charts":1,"defined_names":2},"read":"whole","date_system":"1900"}

{"sheet":"Gairės","index":0,"n_rows":27,"n_cols":5,"rows_kept":27}
["Sukurkite veiksmų planas įvesdami svarbias gaires ir veiklą šiame darbalapyje.\nDarbalapio pavadinimas yra C1 langelyje. \nInformacija apie darbalapio naudojimą, įskaitant instrukcijas, kai naudojami ekrano skaitytuvai, pateikta darbalapyje Apie.\nNorėdami gauti tolesnių instrukcijų, toliau eikite A stulpeliu žemyn.",null,"Gairės"]
["Lentelės antraštės yra langeliuose nuo C2 iki E2. Naudokite Rūšiuoti ir filtruoti parinktis, kad rikiuotumėte arba rastumėte konkrečius įrašus.\nLentelėje, kuri prasideda C3 langelyje, įveskite gaires su datomis ir nustatykite gairės išdėstymo diagramoje poziciją.\nB stulpelis paslėptas. Diagrama, sugeneruota naudojant šiuos duomenis, kurioje yra slinkties juosta, skirta laiko planavimo juostos daliai peržiūrėti. B stulpelis padeda nustatyti, kurias gaires pavaizduoti diagramoje, kai paslenkama slinkties juosta. \nĮspėjimas. Panaikinus arba pakeitus B stulpelio turinį, gali būti sutrikdytas šioje darbaknygėje įtaisytos diagramos vientisumas.","Nr.","Pozicija","Data","Gairė"]
["C1 langelyje įveskite pozicija, skirtą datai diagramoje pavaizduoti, ir gairę. Norėdami gairę pavaizduoti virš laiko planavimo juostos, įveskite teigiamą numerį nuo 1 iki 3. Norėdami gairę pavaizduoti po laiko planavimo juosta, įveskite neigiamą numerį nuo –1 iki –3.\nLentelės D ir E stulpeliuose įveskite data ir gairė arba veiklą.\nPakartokite šį procesą į lentelę dešinėje įtraukdami kiekvieną naują eilutę.\nDuomenų pavyzdžiai pateikiami eilutėse nuo 3 iki 26. Keiskite arba panaikinkite turinio pavyzdį, kad sukurtumėte savo veiksmų planą.\nTolesnį nurodymą rasite perėję į A27 langelį.",{"$f":"ROW($A1)","v":1},1,{"$f":"TODAY()","v":"2018-06-29"},"Pradžia"]
[null,{"$f":"ROW($A2)","v":2},-2,{"$f":"D3+10","v":"2018-07-09"},"Problemos analizė\n1 veikla"]
[null,3,1,{"$f":"D4+20","v":"2018-07-29"},"Sukurti verslo planą\n1 veikla\n2 veikla"]
[null,4,-1,{"$f":"D5+30","v":"2018-08-28"},"Peržiūrėti pateiktį"]
[null,5,{"v":-0.5,"d":"-1"},{"$f":"D6+40","v":"2018-10-07"},"Iniciatyvos pradžia dalyvaujant vadovams\n1 veikla\n2 veikla"]
[null,6,2,{"$f":"D7+50","v":"2018-11-26"},"Vadovų interesų vienijimas\n1 veikla\n2 veikla\n3 veikla"]
[null,7,{"v":0.5,"d":"1"},{"$f":"D8+60","v":"2019-01-25"},"Suinteresuotųjų šalių įtraukimas"]
[null,8,-1,{"$f":"D9+70","v":"2019-04-05"},"Išteklių pasirinkimas"]
[null,9,{"v":0.5,"d":"1"},{"$f":"D10+80","v":"2019-06-24"},"Komandos sukūrimas\n1 veikla "]
[null,10,-2,{"$f":"D11+90","v":"2019-09-22"},"Iniciatyvos pradžia dalyvaujant komandai\n1 veikla \n2 veikla\n3 veikla\n4 veikla"]
[null,11,3,{"$f":"D12+100","v":"2019-12-31"},"Pradėti duomenų rinkimą"]
[null,12,-1,{"$f":"D13+90","v":"2020-03-30"},"Duomenų analizė"]
[null,13,1,{"$f":"D14+80","v":"2020-06-18"},"Dizainas"]
[null,14,1,{"$f":"D15+70","v":"2020-08-27"},"Koncepcijos pagrindimas"]
[null,15,-3,{"$f":"D16+60","v":"2020-10-26"},"Bandymai ir analizė"]
[null,16,-2,{"$f":"D17+50","v":"2020-12-15"},"Perprojektavimas"]
[null,17,2,{"$f":"D18+40","v":"2021-01-24"},"Perkūrimas"]
[null,18,-1,{"$f":"D19+30","v":"2021-02-23"},"Bandymai ir analizė"]
[null,19,1,{"$f":"D20+20","v":"2021-03-15"},"Perprojektavimas"]
[null,20,-3,{"$f":"D21+10","v":"2021-03-25"},"Perkūrimas"]
[null,21,2,{"$f":"D22+20","v":"2021-04-14"},"Galutinis bandymas"]
[null,22,1,{"$f":"D23+30","v":"2021-05-14"},"Beta versijos bandymas"]
[null,23,-3,{"$f":"D24+40","v":"2021-06-23"},"Peržiūra"]
[null,24,-2,{"$f":"D25+50","v":"2021-08-12"},"Išleidimas rinkodarai"]
["Norėdami į lentelę Veiksmų plano gairės įtraukti daugiau eilučių, tiesiog virš šios eilutės įterpkite naują eilutę.\nŠiame darbalapyje nėra jokių tolesnių nurodymų.",null,"Norėdami įtraukti daugiau gairių, įtraukite naują eilutę virš šios linijos."]

{"sheet":"Veiksmų planas","index":1,"n_rows":3,"n_cols":4,"rows_kept":3}
["Diagrama, vaizduojanti darbalapyje Gairės nurodytas gaires, yra šiame darbalapyje. \nMetai nurodyti B2, C2 ir D2 langeliuose, kuriuose pritaikytas 3 antraštės stilius.\nVienu metu diagramoje vaizduojama 10 gairių. \nNorėdami naršyti veiksmų plane, naudokite slinkties juostą, esančią langeliuose nuo B4 iki D4.\nLaiko planavimo juostos metai yra langeliuose nuo B3 iki D3.\nŠiame darbalapyje nėra jokių tolesnių nurodymų."]
[]
[null,{"$f":"'Diagramos duomenys'!B20","v":2018},{"$f":"'Diagramos duomenys'!B21","v":""},{"$f":"'Diagramos duomenys'!B22","v":2019}]

{"sheet":"Apie","index":2,"n_rows":5,"n_cols":1,"rows_kept":5}
["Apie šią darbaknygę"]
["Instrukcijos, kai naudojami ekrano skaitytuvai"]
["Šioje darbaknygėje yra 4 darbalapiai. \n\nGairės\nVeiksmų planas\nApie\nDiagramos duomenys (paslėpta)\n\nKiekvieno darbalapio instrukcijos yra kiekvieno darbalapio A stulpelyje nuo A1 langelio. Jos parašytos naudojant paslėptą tekstą. Kiekvienas instrukcijų veiksmas padeda suprasti tos eilutės informaciją. Kiekvienas paskesnis veiksmas tęsiamas A2 langelyje, tada A3 ir t. t., nebent kai aiškiai nurodoma kitaip. Pavyzdžiui, norint pereiti prie kito veiksmo instrukcijoje gali būti nurodyta „eikite į A6 langelį“. \n\nPaslėptas tekstas nebus spausdinamas.\n\nNorėdami pašalinti šias instrukcijas iš bet kurio darbalapio, tiesiog panaikinkite A stulpelį.\n"]
["Šiame veiksmų plane naudojamos pozicijos norint diagramoje pavaizduoti gaires ir veiklą. Pozicijas galima naudoti norint gairei arba veiklai suteikti daugiau svarbos. Tiesiog pakoreguokite reikšmes pagal savo svarbos pageidavimą. Pavyzdžiui, 3 gairė / veikla gali būti svarbesnė už 2 gairę / veiklą. Norėdami tai nurodyti diagramoje, tiesiog 3 gairės / veiklos pozicijos reikšmę nustatykite didesnę už 2 gairės / veiklos reikšmę.  \n"]
["Tai paskutinis nurodymas šiame darbalapyje."]

{"sheet":"Diagramos duomenys","index":3,"n_rows":26,"n_cols":4,"rows_kept":26,"hidden":true}
["Duomenys, skirti dinaminės diagramos kūrimui, yra šiame darbalapyje. Nepanaikinkite šio darbalapio!\nPanaikinus šį darbalapį, gali būti pakenkta darbaknygės dinaminėms galimybėms.","Nepanaikinkite šio darbalapio!"]
["Lentelės pavadinimas yra B2 langelyje.","Dinaminės diagramos turinys"]
["Lentelės antraštės yra langeliuose nuo B3 iki D3. \nLentelė yra automatiškai atnaujinama pagal darbalapyje Gairės įvedamus duomenis.\nĮspėjimas. Pakeitus arba panaikinus šios lentelės turinį, gali būti sugadintos diagramos Veiksmų planas, esančios darbalapyje Veiksmų planas, dinaminio atnaujinimo galimybės.\nTolesnį nurodymą rasite perėję į A15 langelį.","Data","Įvykiai","Pozicija"]
[null,{"$f":"IFERROR(IF(LEN(Gairės!D3)=0,\"\",INDEX(VeiksmųPlanoGairės[],Gairės!$B3+$B$17,3)),\"\")","v":"2018-06-29"},{"$f":"IFERROR(IF(LEN(Gairės!E3)=0,\"\",INDEX(VeiksmųPlanoGairės[],Gairės!$B3+$B$17,4)),\"\")","v":"Pradžia"},{"$f":"IFERROR(INDEX(VeiksmųPlanoGairės[],Gairės!$B3+$B$17,2),\"\")","v":1}]
[null,{"$f":"IFERROR(IF(LEN(Gairės!D4)=0,\"\",INDEX(VeiksmųPlanoGairės[],Gairės!$B4+$B$17,3)),\"\")","v":"2018-07-09"},{"$f":"IFERROR(IF(LEN(Gairės!E4)=0,\"\",INDEX(VeiksmųPlanoGairės[],Gairės!$B4+$B$17,4)),\"\")","v":"Problemos analizė\n1 veikla"},{"$f":"IFERROR(INDEX(VeiksmųPlanoGairės[],Gairės!$B4+$B$17,2),\"\")","v":-2}]
[null,{"$f":"IFERROR(IF(LEN(Gairės!D5)=0,\"\",INDEX(VeiksmųPlanoGairės[],Gairės!$B5+$B$17,3)),\"\")","v":"2018-07-29"},{"$f":"IFERROR(IF(LEN(Gairės!E5)=0,\"\",INDEX(VeiksmųPlanoGairės[],Gairės!$B5+$B$17,4)),\"\")","v":"Sukurti verslo planą\n1 veikla\n2 veikla"},{"$f":"IFERROR(INDEX(VeiksmųPlanoGairės[],Gairės!$B5+$B$17,2),\"\")","v":1}]
[null,{"$f":"IFERROR(IF(LEN(Gairės!D6)=0,\"\",INDEX(VeiksmųPlanoGairės[],Gairės!$B6+$B$17,3)),\"\")","v":"2018-08-28"},{"$f":"IFERROR(IF(LEN(Gairės!E6)=0,\"\",INDEX(VeiksmųPlanoGairės[],Gairės!$B6+$B$17,4)),\"\")","v":"Peržiūrėti pateiktį"},{"$f":"IFERROR(INDEX(VeiksmųPlanoGairės[],Gairės!$B6+$B$17,2),\"\")","v":-1}]
[null,{"$f":"IFERROR(IF(LEN(Gairės!D7)=0,\"\",INDEX(VeiksmųPlanoGairės[],Gairės!$B7+$B$17,3)),\"\")","v":"2018-10-07"},{"$f":"IFERROR(IF(LEN(Gairės!E7)=0,\"\",INDEX(VeiksmųPlanoGairės[],Gairės!$B7+$B$17,4)),\"\")","v":"Iniciatyvos pradžia dalyvaujant vadovams\n1 veikla\n2 veikla"},{"$f":"IFERROR(INDEX(VeiksmųPlanoGairės[],Gairės!$B7+$B$17,2),\"\")","v":-0.5}]
[null,{"$f":"IFERROR(IF(LEN(Gairės!D8)=0,\"\",INDEX(VeiksmųPlanoGairės[],Gairės!$B8+$B$17,3)),\"\")","v":"2018-11-26"},{"$f":"IFERROR(IF(LEN(Gairės!E8)=0,\"\",INDEX(VeiksmųPlanoGairės[],Gairės!$B8+$B$17,4)),\"\")","v":"Vadovų interesų vienijimas\n1 veikla\n2 veikla\n3 veikla"},{"$f":"IFERROR(INDEX(VeiksmųPlanoGairės[],Gairės!$B8+$B$17,2),\"\")","v":2}]
[null,{"$f":"IFERROR(IF(LEN(Gairės!D9)=0,\"\",INDEX(VeiksmųPlanoGairės[],Gairės!$B9+$B$17,3)),\"\")","v":"2019-01-25"},{"$f":"IFERROR(IF(LEN(Gairės!E9)=0,\"\",INDEX(VeiksmųPlanoGairės[],Gairės!$B9+$B$17,4)),\"\")","v":"Suinteresuotųjų šalių įtraukimas"},{"$f":"IFERROR(INDEX(VeiksmųPlanoGairės[],Gairės!$B9+$B$17,2),\"\")","v":0.5}]
[null,{"$f":"IFERROR(IF(LEN(Gairės!D10)=0,\"\",INDEX(VeiksmųPlanoGairės[],Gairės!$B10+$B$17,3)),\"\")","v":"2019-04-05"},{"$f":"IFERROR(IF(LEN(Gairės!E10)=0,\"\",INDEX(VeiksmųPlanoGairės[],Gairės!$B10+$B$17,4)),\"\")","v":"Išteklių pasirinkimas"},{"$f":"IFERROR(INDEX(VeiksmųPlanoGairės[],Gairės!$B10+$B$17,2),\"\")","v":-1}]
[null,{"$f":"IFERROR(IF(LEN(Gairės!D11)=0,\"\",INDEX(VeiksmųPlanoGairės[],Gairės!$B11+$B$17,3)),\"\")","v":"2019-06-24"},{"$f":"IFERROR(IF(LEN(Gairės!E11)=0,\"\",INDEX(VeiksmųPlanoGairės[],Gairės!$B11+$B$17,4)),\"\")","v":"Komandos sukūrimas\n1 veikla "},{"$f":"IFERROR(INDEX(VeiksmųPlanoGairės[],Gairės!$B11+$B$17,2),\"\")","v":0.5}]
[null,{"$f":"IFERROR(IF(LEN(Gairės!D12)=0,\"\",INDEX(VeiksmųPlanoGairės[],Gairės!$B12+$B$17,3)),\"\")","v":"2019-09-22"},{"$f":"IFERROR(IF(LEN(Gairės!E12)=0,\"\",INDEX(VeiksmųPlanoGairės[],Gairės!$B12+$B$17,4)),\"\")","v":"Iniciatyvos pradžia dalyvaujant komandai\n1 veikla \n2 veikla\n3 veikla\n4 veikla"},{"$f":"IFERROR(INDEX(VeiksmųPlanoGairės[],Gairės!$B12+$B$17,2),\"\")","v":-2}]
[]
["Slenkant veiksmų planu naudojama esanti žingsnio reikšmė. Šios funkcijos pavadinimas yra B15 langelyje.\nLentelė su antrašte ir viena reikšme yra B16 ir B17 langeliuose.\nTolesnį nurodymą rasite perėję į A19 langelį.","Slinkimo geba"]
[null,"Eilutės žingsnis"]
[null,0]
[]
["Veiksmų planas diagrama laiko planavimo juostoje išdėsto metus. Kad būtų galima tai padaryti, metai turi būti gaunami iš gairės sąrašo. \nŠios sekcijos pavadinimas yra B19 langelyje esantis žodis „Metai“. \nMetų reikšmės automatiškai sugeneruojamos langeliuose nuo C20 iki C22.\nĮspėjimas. Panaikinus arba pakeitus šiuos metus, gali būti paveiktas veiksmų planas diagramos tikslumas.\nTolesnį nurodymą rasite perėję į A24 langelį.","Metai"]
[null,{"$f":"IFERROR(YEAR(B4),\"\")","v":2018},"<-- pradinės veiksmų plano pozicijos metai"]
[null,{"$f":"IFERROR(IF(YEAR($B$9)=$B$20,\"\",YEAR($B$9)),\"\")","v":""},"<-- vidurinio veiksmų plano laikotarpio metai. Atkreipkite dėmesį, jog šis langelis gali būti tuščias, jei tai tie patys metai kaip veiksmų plano pradinės pozicijos metai"]
[null,{"$f":"IFERROR(IF(YEAR($B$13)=$B$20,\"\",YEAR($B$13)),\"\")","v":2019},"<-- galutinės veiksmų plano pozicijos metai. Atkreipkite dėmesį, jog šis langelis gali būti tuščias, jei tai tie patys metai kaip veiksmų plano pradinės pozicijos metai"]
[]
["Veiksmų planas diagramos žiediniuose žymekliuose yra datos iš šio darbalapio dinaminės diagramos turinio. Datos yra pirmoji data C24 langelyje, vidurinė data C25 langelyje ir galutinė data C26 langelyje.\nŠiame darbalapyje nėra jokių tolesnių nurodymų.","Pirmoji data",{"$f":"B4","v":"2018-06-29"}]
[null,"Vidurinė data",{"$f":"B9","v":"2018-11-26"}]
[null,"Galutinė data",{"$f":"B13","v":"2019-09-22"}]